fUST/lending_fUST_20260522
["ID","MTS","AMOUNT","RATE_DAILY","PERIOD"]
[422789585,1779395442000,-500.0,0.00013699,2]
[422789586,1779395442000,-1000.0,0.00013699,2]
[422789584,1779395442000,-639.02363039,0.00013699,2]
[422789589,1779395442000,-151.0,0.000137,2]
[422789588,1779395442000,-151.0,0.000137,2]
[422789592,1779395442000,-151.0,0.000137,2]
[422789594,1779395442000,-1577.20526744,0.00013719,2]
[422789607,1779395442000,-151.0,0.000138,2]
[422789596,1779395442000,-291.67324,0.0001372,2]
[422789600,1779395442000,-244.0,0.00013735,2]
[422789602,1779395442000,-200.0,0.00013755,2]
[422789604,1779395442000,-157.71,0.00013785,2]
[422789610,1779395442000,-151.0,0.000139,2]
[422789527,1779395442000,-226.0,0.00013151,3]
[422789566,1779395442000,-506.40426759,0.00013509,2]
[422789568,1779395442000,-506.40426759,0.00013549,2]
[422789587,1779395442000,-150.98,0.000137,2]
[422789564,1779395442000,-151.0,0.000135,2]
[422789533,1779395442000,-210.715734,0.00013222,2]
[422789567,1779395442000,-152.0,0.00013542,30]
[422789530,1779395442000,-160.0,0.00013222,2]
[422789532,1779395442000,-185.357867,0.00013222,2]
[422789537,1779395442000,-1987.0078442,0.000133,2]
[422789536,1779395442000,-506.40426759,0.00013251,2]
[422789542,1779395442000,-174.74262722,0.00013354,2]
[422789550,1779395442000,-150.98,0.000134,2]
[422789540,1779395442000,-506.40426759,0.00013307,2]
[422789539,1779395442000,-151.0,0.000133,2]
[422789551,1779395442000,-151.0,0.000134,2]
[422789544,1779395442000,-185.0,0.00013365,2]
[422789549,1779395442000,-1987.0078442,0.000134,2]
[422789547,1779395442000,-733.22639542,0.00013365,14]
[422789541,1779395442000,-506.40426759,0.00013309,2]
[422789538,1779395442000,-150.98,0.000133,2]
[422789548,1779395442000,-506.40426759,0.00013381,2]
[422789562,1779395442000,-1987.0078442,0.000135,2]
[422789546,1779395442000,-443.0,0.00013365,2]
[422789565,1779395442000,-151.0,0.000135,2]
[422789563,1779395442000,-150.98,0.000135,2]
[422789559,1779395442000,-506.40426759,0.00013425,2]
[422789556,1779395442000,-506.40426759,0.0001341,2]
[422789557,1779395442000,-194.448827,0.00013425,2]
[422789561,1779395442000,-605.29607478,0.00013468,2]
[422789558,1779395442000,-199.616164,0.00013425,2]
[422789555,1779395442000,-506.40426759,0.00013406,2]
[422789553,1779395442000,-151.0,0.000134,2]
[422789552,1779395442000,-151.0,0.000134,2]
[422789554,1779395442000,-506.40426759,0.000134,2]
[422789560,1779395442000,-506.40426759,0.00013427,2]
[422789647,1779395443000,-151.0,0.00014,2]
[422789656,1779395443000,-151.0,0.00014,2]
[422789648,1779395443000,-151.0,0.00014,2]
[422789659,1779395443000,-151.0,0.00014,2]
[422789650,1779395443000,-151.0,0.00014,2]
[422789654,1779395443000,-151.0,0.00014,2]
[422789652,1779395443000,-151.0,0.00014,2]
[422789655,1779395443000,-151.0,0.00014,2]
[422789653,1779395443000,-151.0,0.00014,2]
[422789664,1779395443000,-151.0,0.00014,2]
[422789657,1779395443000,-151.0,0.00014,2]
[422789660,1779395443000,-151.0,0.00014,2]
[422789662,1779395443000,-151.0,0.00014,2]
[422789661,1779395443000,-151.0,0.00014,2]
[422789663,1779395443000,-151.0,0.00014,2]
[422789666,1779395443000,-151.0,0.00014,2]
[422789665,1779395443000,-151.0,0.00014,2]
[422789658,1779395443000,-151.0,0.00014,2]
[422789667,1779395443000,-151.0,0.00014,2]
[422789651,1779395443000,-151.0,0.00014,2]
[422789645,1779395443000,-151.0,0.00014,2]
[422789628,1779395443000,-545049.88499785,0.00014,2]
[422789642,1779395443000,-151.0,0.00014,2]
[422789668,1779395443000,-151.0,0.00014,2]
[422789616,1779395443000,-798.77953799,0.00013984,2]
[422789618,1779395443000,-160.0,0.00013999,2]
[422789615,1779395443000,-245.0,0.0001391,2]
[422789613,1779395443000,-251.09131232,0.000139,2]
[422789620,1779395443000,-189523.51249012,0.00014,10]
[422789623,1779395443000,-1000.0,0.00014,2]
[422789625,1779395443000,-189893.21200366,0.00014,2]
[422789629,1779395443000,-166447.12960318,0.00014,2]
[422789644,1779395443000,-151.0,0.00014,2]
[422789631,1779395443000,-151.0,0.00014,2]
[422789630,1779395443000,-151.0,0.00014,2]
[422789632,1779395443000,-151.0,0.00014,2]
[422789639,1779395443000,-151.0,0.00014,2]
[422789634,1779395443000,-151.0,0.00014,2]
[422789635,1779395443000,-151.0,0.00014,2]
[422789633,1779395443000,-151.0,0.00014,2]
[422789640,1779395443000,-151.0,0.00014,2]
[422789636,1779395443000,-151.0,0.00014,2]
[422789637,1779395443000,-151.0,0.00014,2]
[422789641,1779395443000,-151.0,0.00014,2]
[422789669,1779395443000,-151.0,0.00014,2]
[422789688,1779395443000,-791.148913,0.00014,2]
[422789672,1779395443000,-151.0,0.00014,2]
[422789698,1779395443000,-1250.41857,0.00014,2]
[422789697,1779395443000,-1250.41857,0.00014,2]
[422789699,1779395443000,-1250.41857,0.00014,2]
[422789700,1779395443000,-1250.41857,0.00014,2]
[422789701,1779395443000,-1250.41857,0.00014,2]
[422789702,1779395443000,-1250.41857,0.00014,2]
[422789708,1779395443000,-2321.78445518,0.00014,2]
[422789705,1779395443000,-91148.00828023,0.00014,2]
[422789703,1779395443000,-1250.41857,0.00014,2]
[422789704,1779395443000,-97601.78403515,0.00014,2]
[422789707,1779395443000,-9670.10511955,0.00014,2]
[422789706,1779395443000,-19324.05634671,0.00014,2]
[422789670,1779395443000,-151.0,0.00014,2]
[422789710,1779395443000,-469.07870949,0.00014,2]
[422789711,1779395443000,-154870.02332179,0.00014,2]
[422789713,1779395443000,-111036.39791332,0.00014,2]
[422789712,1779395443000,-15468.67238213,0.00014,2]
[422789714,1779395443000,-1684.02234877,0.00014,2]
[422789715,1779395443000,-74835.98421177,0.00014,15]
[422789696,1779395443000,-1250.41857,0.00014,2]
[422789693,1779395443000,-1250.41857,0.00014,2]
[422789709,1779395443000,-4238.00687632,0.00014,2]
[422789695,1779395443000,-1250.41857,0.00014,2]
[422789673,1779395443000,-151.0,0.00014,2]
[422789671,1779395443000,-151.0,0.00014,2]
[422789675,1779395443000,-174.09712755,0.00014,2]
[422789674,1779395443000,-151.0,0.00014,2]
[422789676,1779395443000,-277384.36082574,0.00014,2]
[422789678,1779395443000,-791.148913,0.00014,2]
[422789679,1779395443000,-791.148913,0.00014,2]
[422789680,1779395443000,-791.148913,0.00014,2]
[422789682,1779395443000,-791.148913,0.00014,2]
[422789677,1779395443000,-791.148913,0.00014,2]
[422789684,1779395443000,-791.148913,0.00014,2]
[422789683,1779395443000,-791.148913,0.00014,2]
[422789686,1779395443000,-791.148913,0.00014,2]
[422789685,1779395443000,-791.148913,0.00014,2]
[422789689,1779395443000,-151.0,0.00014,2]
[422789687,1779395443000,-791.148913,0.00014,2]
[422789690,1779395443000,-151.0,0.00014,2]
[422789691,1779395443000,-193.604384,0.00014,2]
[422789692,1779395443000,-1250.41857,0.00014,2]
[422789681,1779395443000,-791.148913,0.00014,2]
[422789694,1779395443000,-1250.41857,0.00014,2]
[422789730,1779395447000,-419.45673619,0.00014166,2]
[422789721,1779395447000,-628.55417656,0.00013719,2]
[422789722,1779395447000,-422.91600173,0.00013719,2]
[422789724,1779395447000,-439.46800153,0.00014,2]
[422789725,1779395447000,-771.92326381,0.00014,2]
[422789727,1779395447000,-150.66,0.000141,2]
[422789726,1779395447000,-200.0,0.000141,2]
[422789729,1779395447000,-151.6,0.000141,2]
[422789728,1779395447000,-150.66,0.000141,2]
[422789723,1779395447000,-12146.49035461,0.00014,15]
[422789770,1779396632000,-1307.50648771,9.199e-05,2]
[422789767,1779396632000,-1307.50648771,9.199e-05,2]
[422789766,1779396632000,-1307.50648771,9.199e-05,2]
[422789762,1779396632000,-500.0,9.198e-05,2]
[422789764,1779396632000,-420.15251901,9.198e-05,2]
[422789761,1779396632000,-500.0,9.198e-05,2]
[422789759,1779396632000,-2576.68953712,9.1e-05,2]
[422789760,1779396632000,-429.96,9.198e-05,2]
[422789763,1779396632000,-620.00369094,9.198e-05,2]
[422789758,1779396632000,-2449.96374998,9.1e-05,2]
[422789757,1779396632000,-2349.53697177,9.019e-05,2]
[422789755,1779396632000,-2122.3844065,8.919e-05,2]
[422789754,1779396632000,-1130.35097799,8.918e-05,2]
[422789752,1779396632000,-1000.70433814,8.819e-05,2]
[422789753,1779396632000,-69.64902201,8.918e-05,2]
[422789751,1779396632000,-362.58099973,8.775e-05,2]
[422789750,1779396632000,-5000.0,8.558e-05,2]
[422789781,1779396632000,-1307.50648771,9.199e-05,2]
[422789756,1779396632000,-300.0,9.018e-05,2]
[422789787,1779396632000,-1307.50648771,9.199e-05,2]
[422789796,1779396632000,-1394.67358688,9.199e-05,2]
[422789785,1779396632000,-1307.50648771,9.199e-05,2]
[422789788,1779396632000,-1307.50648771,9.199e-05,2]
[422789801,1779396632000,-1394.67358688,9.199e-05,2]
[422789802,1779396632000,-1394.67358688,9.199e-05,2]
[422789809,1779396632000,-4280.67764354,9.2e-05,2]
[422789797,1779396632000,-1394.67358688,9.199e-05,2]
[422789799,1779396632000,-1394.67358688,9.199e-05,2]
[422789793,1779396632000,-1307.50648771,9.199e-05,2]
[422789806,1779396632000,-1394.67358688,9.199e-05,2]
[422789804,1779396632000,-1394.67358688,9.199e-05,2]
[422789795,1779396632000,-1394.67358688,9.199e-05,2]
[422789792,1779396632000,-1307.50648771,9.199e-05,2]
[422789790,1779396632000,-1307.50648771,9.199e-05,2]
[422789791,1779396632000,-1307.50648771,9.199e-05,2]
[422789771,1779396632000,-1307.50648771,9.199e-05,2]
[422789779,1779396632000,-1307.50648771,9.199e-05,2]
[422789777,1779396632000,-1307.50648771,9.199e-05,2]
[422789773,1779396632000,-1307.50648771,9.199e-05,2]
[422789775,1779396632000,-1307.50648771,9.199e-05,2]
[422789783,1779396632000,-1307.50648771,9.199e-05,2]
[422789794,1779396632000,-1394.67358688,9.199e-05,2]
[422790167,1779396641000,-5000.0,9.108e-05,2]
[422790168,1779396641000,-625204.20982627,9.2e-05,2]
[422790185,1779396647000,-1912.35294677,9.2e-05,2]
[422790231,1779397832000,-551.33142369,8.662e-05,2]
[422790226,1779397832000,-1071.458,8.662e-05,2]
[422790224,1779397832000,-798.87028568,8.662e-05,2]
[422790225,1779397832000,-1237.30973074,8.662e-05,2]
[422790276,1779397838000,-1341.03055989,8.662e-05,2]
[422790277,1779397838000,-364.76835541,8.749e-05,2]
[422790279,1779397838000,-1200.0,9.197e-05,2]
[422790281,1779397838000,-300.0,9.199e-05,2]
[422790284,1779397838000,-10463.0301371,9.2e-05,2]
[422790316,1779397839000,-1768.85323427,9.2e-05,2]
[422790314,1779397839000,-845.51462516,9.2e-05,2]
[422790312,1779397839000,-3992.27447946,9.2e-05,2]
[422790309,1779397839000,-280566.94057545,9.2e-05,2]
[422790307,1779397839000,-64115.88717106,9.2e-05,2]
[422790305,1779397839000,-1477.8415112,9.2e-05,2]
[422790303,1779397839000,-9907.9832119,9.2e-05,2]
[422790299,1779397839000,-19507.1685314,9.2e-05,2]
[422790301,1779397839000,-3715.72626716,9.2e-05,2]
[422790295,1779397839000,-1419885.34680105,9.2e-05,2]
[422790297,1779397839000,-52293.77856529,9.2e-05,2]
[422790398,1779397841000,-2302.42,9.2e-05,2]
[422790399,1779397841000,-6085.88211101,9.2e-05,2]
[422790400,1779397841000,-2581.48554106,9.2e-05,2]
[422790403,1779397841000,-66517.38345107,9.2e-05,2]
[422790402,1779397841000,-671.77936835,9.2e-05,2]
[422790404,1779397841000,-6423.94677741,9.2e-05,2]
[422790401,1779397841000,-8094.77678691,9.2e-05,2]
[422790416,1779397844000,-632.9392037,9.2e-05,2]
[422790415,1779397844000,-446.0,9.2e-05,2]
[422790414,1779397844000,-684.83955268,9.2e-05,2]
[422790411,1779397844000,-485.7107963,9.2e-05,2]
[422790426,1779397847000,-176927.47375371,9.2e-05,2]
[422790427,1779397847000,-2966.37331664,9.2e-05,2]
[422790428,1779397847000,-756.85469116,9.2e-05,2]
[422790430,1779397847000,-5142.00043291,9.2e-05,2]
[422790429,1779397847000,-5173.46939032,9.2e-05,2]
[422790431,1779397847000,-494.293216,9.2e-05,2]
[422790432,1779397847000,-351.92062858,9.2e-05,2]
[422790435,1779397847000,-1911.76309404,9.2e-05,2]
[422790433,1779397847000,-1257.42635663,9.2e-05,2]
[422790434,1779397847000,-1360.29392899,9.2e-05,2]
[422790482,1779399033000,-598.70512035,7.567e-05,2]
[422790483,1779399033000,-4401.29487965,7.567e-05,2]
[422790487,1779399033000,-300.0,8.999e-05,2]
[422790484,1779399033000,-366.87746547,7.76e-05,2]
[422790489,1779399033000,-1200.0,8.999e-05,2]
[422790488,1779399033000,-300.0,8.999e-05,2]
[422790490,1779399033000,-5773.63255714,9e-05,2]
[422790491,1779399033000,-1286.90383156,9e-05,2]
[422790485,1779399033000,-454.75934406,8.037e-05,2]
[422790486,1779399033000,-169.978498,8.218e-05,2]
[422790527,1779399038000,-2849.8060003,8.91e-05,2]
[422790626,1779399040000,-2150.1939997,8.91e-05,2]
[422790628,1779399040000,-2907.32958444,9e-05,2]
[422790627,1779399040000,-212.50824136,9e-05,2]
[422790629,1779399040000,-2272.76631738,9.197e-05,2]
[422790661,1779399046000,-7271.7514197,9.2e-05,2]
[422790660,1779399046000,-77.32725012,9.197e-05,2]
[422790730,1779400231000,-1552.32041335,8.749e-05,2]
[422790746,1779400232000,-566.28921522,8.926e-05,2]
[422790744,1779400232000,-834.64869981,8.926e-05,2]
[422790742,1779400232000,-369.10627579,8.904e-05,2]
[422790740,1779400232000,-3185.35880187,8.749e-05,2]
[422790738,1779400232000,-262.32078478,8.749e-05,2]
[422790989,1779400238000,-1038.4109075,9.199e-05,2]
[422790991,1779400238000,-1038.4109075,9.199e-05,2]
[422790987,1779400238000,-1038.4109075,9.199e-05,2]
[422790984,1779400238000,-358.42074524,9.198e-05,2]
[422790985,1779400238000,-841.57925476,9.198e-05,2]
[422790983,1779400238000,-300.0,9.198e-05,2]
[422790981,1779400238000,-391.788,9.016e-05,2]
[422790992,1779400238000,-1038.4109075,9.199e-05,2]
[422790980,1779400238000,-1686.45975531,8.926e-05,2]
[422790990,1779400238000,-1038.4109075,9.199e-05,2]
[422790986,1779400238000,-1038.4109075,9.199e-05,2]
[422790988,1779400238000,-1038.4109075,9.199e-05,2]
[422791003,1779400238000,-527.6721202,9.199e-05,2]
[422790995,1779400238000,-1038.4109075,9.199e-05,2]
[422791005,1779400238000,-50.04356848,9.199e-05,2]
[422791001,1779400238000,-1038.4109075,9.199e-05,2]
[422790993,1779400238000,-1038.4109075,9.199e-05,2]
[422790999,1779400238000,-1038.4109075,9.199e-05,2]
[422790998,1779400238000,-1038.4109075,9.199e-05,2]
[422791000,1779400238000,-1038.4109075,9.199e-05,2]
[422791004,1779400238000,-510.7387873,9.199e-05,2]
[422791002,1779400238000,-1038.4109075,9.199e-05,2]
[422790996,1779400238000,-1038.4109075,9.199e-05,2]
[422790994,1779400238000,-1038.4109075,9.199e-05,2]
[422790997,1779400238000,-1038.4109075,9.199e-05,2]
[422791014,1779400241000,-1038.4109075,9.199e-05,2]
[422791011,1779400241000,-836.71336725,9.199e-05,2]
[422791010,1779400241000,-988.36733902,9.199e-05,2]
[422791013,1779400241000,-1038.4109075,9.199e-05,2]
[422791012,1779400241000,-201.69754025,9.199e-05,2]
[422791017,1779400241000,-1038.4109075,9.199e-05,2]
[422791016,1779400241000,-1038.4109075,9.199e-05,2]
[422791019,1779400241000,-1038.4109075,9.199e-05,2]
[422791023,1779400241000,-1557.61636126,9.199e-05,2]
[422791018,1779400241000,-1038.4109075,9.199e-05,2]
[422791020,1779400241000,-1038.4109075,9.199e-05,2]
[422791021,1779400241000,-1038.4109075,9.199e-05,2]
[422791024,1779400241000,-8356.45401509,9.2e-05,2]
[422791022,1779400241000,-1038.4109075,9.199e-05,2]
[422791015,1779400241000,-1038.4109075,9.199e-05,2]
[422791042,1779400244000,-878.91953977,9.2e-05,2]
[422791041,1779400244000,-9568.70656001,9.2e-05,2]
[422791040,1779400244000,-2297.19620628,9.2e-05,2]
[422791062,1779400247000,-5000.0,9.108e-05,2]
[422791063,1779400247000,-61724.96852797,9.2e-05,2]
[422791107,1779400892000,-300.0,8.837e-05,2]
[422791150,1779401432000,-3260.09803897,8.575e-05,2]
[422791397,1779401441000,-1739.90196103,8.575e-05,2]
[422791398,1779401441000,-361.72415027,8.883e-05,2]
[422791399,1779401441000,-313.43,9.016e-05,2]
[422791404,1779401441000,-1047.26375997,9.1e-05,2]
[422791401,1779401441000,-1200.0,9.099e-05,2]
[422791406,1779401441000,-500.0,9.199e-05,2]
[422791400,1779401441000,-300.0,9.099e-05,2]
[422791403,1779401441000,-946.12143945,9.1e-05,2]
[422791405,1779401441000,-1096.69143515,9.1e-05,2]
[422791411,1779401441000,-519.265784,9.199e-05,2]
[422791410,1779401441000,-500.0,9.199e-05,2]
[422791402,1779401441000,-464.61200616,9.1e-05,2]
[422791409,1779401441000,-500.0,9.199e-05,2]
[422791408,1779401441000,-497.03440297,9.199e-05,2]
[422791421,1779401441000,-968.13929442,9.2e-05,2]
[422791415,1779401441000,-500.0,9.199e-05,2]
[422791418,1779401441000,-329.68451576,9.199e-05,2]
[422791419,1779401441000,-48458.82841174,9.2e-05,2]
[422791417,1779401441000,-500.0,9.199e-05,2]
[422791414,1779401441000,-500.0,9.199e-05,2]
[422791424,1779401441000,-29645.73086605,9.2e-05,2]
[422791412,1779401441000,-500.0,9.199e-05,2]
[422791413,1779401441000,-500.0,9.199e-05,2]
[422791407,1779401441000,-500.0,9.199e-05,2]
[422791416,1779401441000,-500.0,9.199e-05,2]
[422791440,1779401443000,-8148.27693584,9.2e-05,2]
[422791466,1779401447000,-27605.26247651,9.2e-05,2]
[422791508,1779402632000,-327.0,7.488e-05,2]
[422791507,1779402632000,-387.34377051,7.488e-05,2]
[422791567,1779402638000,-1200.0,7.564e-05,2]
[422791571,1779402638000,-1630.4262317,7.565e-05,2]
[422791573,1779402638000,-3664.7905623,7.565e-05,2]
[422791563,1779402638000,-1221.19111539,7.488e-05,2]
[422791569,1779402638000,-407.60655793,7.565e-05,2]
[422791565,1779402638000,-300.0,7.564e-05,2]
[422791580,1779402638000,-6538.78056632,7.963e-05,2]
[422791576,1779402638000,-1448.45564962,7.565e-05,2]
[422791574,1779402638000,-362.1139124,7.565e-05,2]
[422791577,1779402638000,-3259.02521164,7.565e-05,2]
[422791578,1779402638000,-291.48354254,7.862e-05,2]
[422791579,1779402638000,-354.48966727,7.923e-05,2]
[422791561,1779402638000,-3064.4651141,7.488e-05,2]
[422791590,1779402639000,-369.96494619,9.198e-05,2]
[422791582,1779402639000,-1135.88492777,7.963e-05,2]
[422791584,1779402639000,-1369.12946822,7.963e-05,2]
[422791588,1779402639000,-480.0,8.32e-05,2]
[422791586,1779402639000,-420.0,8.32e-05,2]
[422791592,1779402639000,-749.51227437,9.199e-05,2]
[422791608,1779402639000,-496.36208662,9.199e-05,2]
[422791596,1779402639000,-749.51227437,9.199e-05,2]
[422791606,1779402639000,-749.51227437,9.199e-05,2]
[422791598,1779402639000,-494.4362782,9.199e-05,2]
[422791600,1779402639000,-255.07599617,9.199e-05,2]
[422791604,1779402639000,-749.51227437,9.199e-05,2]
[422791602,1779402639000,-749.51227437,9.199e-05,2]
[422791593,1779402639000,-749.51227437,9.199e-05,2]
[422791802,1779402640000,-818.56969456,7.565e-05,2]
[422791804,1779402640000,-4975.25290392,7.565e-05,2]
[422791808,1779402640000,-749.51227437,9.199e-05,2]
[422791806,1779402640000,-253.15018775,9.199e-05,2]
[422791812,1779402640000,-494.96013995,9.199e-05,2]
[422791815,1779402640000,-254.55213442,9.199e-05,2]
[422791818,1779402640000,-67.78547566,9.199e-05,2]
[422791817,1779402640000,-749.51227437,9.199e-05,2]
[422791810,1779402640000,-749.51227437,9.199e-05,2]
[422791821,1779402641000,-414.12432266,9.199e-05,2]
[422791924,1779402647000,-1026.01566809,7.489e-05,2]
[422791954,1779402650000,-797.20851002,9.199e-05,2]
[422791947,1779402650000,-720.0,7.489e-05,2]
[422791948,1779402650000,-3253.98433191,7.489e-05,2]
[422791951,1779402650000,-749.51227437,9.199e-05,2]
[422791950,1779402650000,-749.51227437,9.199e-05,2]
[422791949,1779402650000,-267.60247605,9.199e-05,2]
[422791953,1779402650000,-749.51227437,9.199e-05,2]
[422791957,1779402650000,-797.20851002,9.199e-05,2]
[422791952,1779402650000,-749.51227437,9.199e-05,2]
[422791955,1779402650000,-797.20851002,9.199e-05,2]
[422791959,1779402650000,-797.20851002,9.199e-05,2]
[422791958,1779402650000,-797.20851002,9.199e-05,2]
[422791962,1779402650000,-797.20851002,9.199e-05,2]
[422791961,1779402650000,-797.20851002,9.199e-05,2]
[422791963,1779402650000,-797.20851002,9.199e-05,2]
[422791964,1779402650000,-653.19722224,9.199e-05,2]
[422791960,1779402650000,-797.20851002,9.199e-05,2]
[422791956,1779402650000,-797.20851002,9.199e-05,2]
[422792018,1779403832000,-250.744,9.016e-05,2]
[422792020,1779403832000,-10312.3224212,9.1e-05,8]
[422792022,1779403832000,-151.0,9.124e-05,2]
[422792036,1779403832000,-595.76130091,9.199e-05,2]
[422792032,1779403832000,-595.76130091,9.199e-05,2]
[422792024,1779403832000,-178.22859509,9.194e-05,2]
[422792016,1779403832000,-595.59788377,8e-05,2]
[422792025,1779403832000,-537.6845,9.194e-05,2]
[422792033,1779403832000,-595.76130091,9.199e-05,2]
[422792014,1779403832000,-10483.18891876,8e-05,2]
[422792028,1779403832000,-500.0,9.194e-05,2]
[422792006,1779403832000,-179.03680253,7.999e-05,2]
[422792008,1779403832000,-19026.21319747,8e-05,2]
[422792004,1779403832000,-1020.96319747,7.999e-05,2]
[422792002,1779403832000,-300.0,7.999e-05,2]
[422792000,1779403832000,-300.0,7.999e-05,2]
[422791997,1779403832000,-771.94321248,7.841e-05,2]
[422791994,1779403832000,-2013.05918132,7.841e-05,2]
[422791999,1779403832000,-357.09359005,7.96e-05,2]
[422791992,1779403832000,-467.86392923,7.841e-05,2]
[422791990,1779403832000,-1747.13367697,7.841e-05,2]
[422792010,1779403832000,-801.0,8e-05,2]
[422792029,1779403832000,-537.6845,9.194e-05,2]
[422792065,1779403832000,-625.54936595,9.199e-05,2]
[422792039,1779403832000,-595.76130091,9.199e-05,2]
[422792076,1779403832000,-625.54936595,9.199e-05,2]
[422792078,1779403832000,-122938.61299183,9.2e-05,2]
[422792080,1779403832000,-1076.45481776,9.2e-05,2]
[422792072,1779403832000,-625.54936595,9.199e-05,2]
[422792074,1779403832000,-625.54936595,9.199e-05,2]
[422792069,1779403832000,-625.54936595,9.199e-05,2]
[422792070,1779403832000,-625.54936595,9.199e-05,2]
[422792063,1779403832000,-625.54936595,9.199e-05,2]
[422792054,1779403832000,-595.76130091,9.199e-05,2]
[422792056,1779403832000,-595.76130091,9.199e-05,2]
[422792067,1779403832000,-625.54936595,9.199e-05,2]
[422792061,1779403832000,-625.54936595,9.199e-05,2]
[422792043,1779403832000,-595.76130091,9.199e-05,2]
[422792052,1779403832000,-595.76130091,9.199e-05,2]
[422792045,1779403832000,-595.76130091,9.199e-05,2]
[422792049,1779403832000,-595.76130091,9.199e-05,2]
[422792041,1779403832000,-595.76130091,9.199e-05,2]
[422792047,1779403832000,-595.76130091,9.199e-05,2]
[422792058,1779403832000,-595.76130091,9.199e-05,2]
[422792060,1779403832000,-595.76130091,9.199e-05,2]
[422792050,1779403832000,-595.76130091,9.199e-05,2]
[422792037,1779403832000,-595.76130091,9.199e-05,2]
[422792103,1779403838000,-49940.13168805,9.2e-05,2]
[422792104,1779403838000,-259789.64906583,9.2e-05,2]
[422792102,1779403838000,-199384.27801668,9.2e-05,2]
[422792113,1779403841000,-8062.67349115,9.2e-05,2]
[422792114,1779403841000,-2433.1418704,9.2e-05,2]
[422792112,1779403841000,-891.41382643,9.2e-05,2]
[422792135,1779403844000,-13156.27919999,9.2e-05,2]
[422792161,1779403847000,-30371.86598955,9.2e-05,2]
[422792160,1779403847000,-30438.18514919,9.2e-05,2]
[422792166,1779404492000,-300.0,8.443e-05,2]
[422792436,1779405038000,-521.43571504,9.199e-05,2]
[422792450,1779405038000,-521.43571504,9.199e-05,2]
[422792459,1779405038000,-521.43571504,9.199e-05,2]
[422792451,1779405038000,-521.43571504,9.199e-05,2]
[422792448,1779405038000,-521.43571504,9.199e-05,2]
[422792455,1779405038000,-521.43571504,9.199e-05,2]
[422792453,1779405038000,-521.43571504,9.199e-05,2]
[422792457,1779405038000,-521.43571504,9.199e-05,2]
[422792461,1779405038000,-521.43571504,9.199e-05,2]
[422792465,1779405038000,-560.54339366,9.199e-05,2]
[422792463,1779405038000,-560.54339366,9.199e-05,2]
[422792471,1779405038000,-560.54339366,9.199e-05,2]
[422792467,1779405038000,-560.54339366,9.199e-05,2]
[422792472,1779405038000,-560.54339366,9.199e-05,2]
[422792482,1779405038000,-623.83055102,9.199e-05,2]
[422792475,1779405038000,-560.54339366,9.199e-05,2]
[422792477,1779405038000,-560.54339366,9.199e-05,2]
[422792473,1779405038000,-560.54339366,9.199e-05,2]
[422792480,1779405038000,-623.83055102,9.199e-05,2]
[422792479,1779405038000,-623.83055102,9.199e-05,2]
[422792485,1779405038000,-129910.22932158,9.2e-05,2]
[422792486,1779405038000,-34677.35682615,9.2e-05,2]
[422792488,1779405038000,-152.0,9.21e-05,2]
[422792483,1779405038000,-245.136,9.199e-05,2]
[422792484,1779405038000,-40095.72646662,9.2e-05,2]
[422792444,1779405038000,-521.43571504,9.199e-05,2]
[422792442,1779405038000,-521.43571504,9.199e-05,2]
[422792421,1779405038000,-537.6845,9.194e-05,2]
[422792438,1779405038000,-521.43571504,9.199e-05,2]
[422792392,1779405038000,-333.99800842,8.993e-05,3]
[422792390,1779405038000,-500.0,8.74e-05,2]
[422792385,1779405038000,-5000.0,8.192e-05,2]
[422792388,1779405038000,-349.95171825,8.359e-05,2]
[422792394,1779405038000,-300.0,9.099e-05,2]
[422792396,1779405038000,-1200.0,9.099e-05,2]
[422792398,1779405038000,-271.09559935,9.1e-05,2]
[422792400,1779405038000,-462.87866607,9.1e-05,2]
[422792409,1779405038000,-160.24027878,9.1e-05,2]
[422792407,1779405038000,-153.90402396,9.1e-05,2]
[422792405,1779405038000,-516.18100414,9.1e-05,2]
[422792403,1779405038000,-502.05431159,9.1e-05,2]
[422792446,1779405038000,-521.43571504,9.199e-05,2]
[422792487,1779405038000,-473527.21518644,9.2e-05,2]
[422792411,1779405038000,-152.38046094,9.1e-05,2]
[422792417,1779405038000,-325.9848009,9.147e-05,2]
[422792413,1779405038000,-156.24114436,9.1e-05,2]
[422792419,1779405038000,-482.9446388,9.147e-05,2]
[422792428,1779405038000,-500.0,9.199e-05,2]
[422792423,1779405038000,-310.79520762,9.199e-05,2]
[422792426,1779405038000,-500.0,9.199e-05,2]
[422792434,1779405038000,-521.43571504,9.199e-05,2]
[422792425,1779405038000,-500.0,9.199e-05,2]